bitfinex/quotes_SOLUSD_20220128
["timestamp","ask_amount","ask_price","bid_price","bid_amount"]
[1643370486375,0.00482436,88.585,88.563,0.25]
[1643370486775,0.00482436,88.585,88.572,6.0]
[1643370487176,0.00482436,88.585,88.573,0.25]
[1643370487978,0.00482436,88.585,88.57,16.29]
[1643370489382,0.00482436,88.585,88.571,0.25]
[1643370491684,0.00482436,88.585,88.572,2.12706996]
[1643370491883,0.00482436,88.585,88.573,0.25]
[1643370492284,0.00482436,88.585,88.573,25.0905]
[1643370492490,0.00482436,88.585,88.574,112.8]
[1643370492687,0.00482436,88.585,88.583,6.0]
[1643370492886,0.00482436,88.585,88.584,29.2238]
[1643370493087,0.00482436,88.585,88.584,25.35086996]
[1643370493588,0.00482436,88.585,88.584,33.57745596]
[1643370493792,0.00482436,88.585,88.584,51.95759596]
[1643370494086,3.08858334,88.701,88.585,75.0]
[1643370494290,3.08858334,88.716,88.62,16.924]
[1643370494488,31.02251811,88.727,88.631,35.7315419]
[1643370494687,3.08858334,88.736,88.631,35.7315419]
[1643370494886,6.17627566,88.737,88.632,0.25]
[1643370495488,6.17627566,88.737,88.632,23.3207]
[1643370495690,30.51853743,88.736,88.632,23.3207]
[1643370495989,112.8,88.726,88.631,35.7315419]
[1643370496191,3.08769232,88.725,88.631,35.7315419]
[1643370496389,4.51688647,88.722,88.631,35.7315419]
[1643370496590,6.0,88.712,88.631,35.7315419]
[1643370496793,0.25,88.711,88.631,35.7315419]
[1643370497198,2.95669142,88.71,88.631,35.7315419]
[1643370497391,0.25,88.709,88.631,35.7315419]
[1643370497591,26.25257327,88.699,88.631,35.7315419]
[1643370497793,0.25,88.698,88.631,35.7315419]
[1643370497992,6.0,88.689,88.631,35.7315419]
[1643370498393,6.25,88.688,88.631,35.7315419]
[1643370498591,6.0,88.687,88.631,35.7315419]
[1643370498791,0.25,88.686,88.631,35.7315419]
[1643370498992,8.53285063,88.677,88.631,35.7315419]
[1643370499195,8.53285063,88.677,88.6,16.29]
[1643370499398,0.25,88.676,88.6,16.29]
[1643370500193,0.25,88.676,88.601,34.80101916]
[1643370500394,0.25,88.676,88.601,35.05101916]
[1643370500593,0.25,88.676,88.601,34.80101916]
[1643370500796,6.0,88.667,88.601,34.80101916]
[1643370500995,6.0,88.665,88.601,34.80101916]
[1643370501397,3.20669142,88.664,88.601,34.80101916]
[1643370501594,26.25257327,88.653,88.601,34.80101916]
[1643370501795,0.25,88.652,88.601,34.80101916]
[1643370501999,16.939,88.65,88.601,34.80101916]
[1643370502398,0.25,88.649,88.601,34.80101916]
[1643370503401,0.25,88.649,88.587,24.5626]
[1643370503598,22.94,88.64,88.56,16.29]
[1643370503799,23.5427,88.639,88.56,16.29]
[1643370503998,6.0,88.629,88.56,16.29]
[1643370504397,0.25,88.628,88.56,16.29]
[1643370504599,0.25,88.628,88.561,40.40781465]
[1643370504600,8.78285063,88.628,88.561,40.40781465]
[1643370504798,8.78285063,88.628,88.562,0.25]
[1643370505805,0.25,88.628,88.562,0.25]
[1643370506007,6.0,88.62,88.562,0.25]
[1643370506407,0.25,88.619,88.562,0.25]
[1643370506808,30.33037169,88.619,88.561,40.40781465]
[1643370508010,112.8,88.608,88.54,16.29]
[1643370508311,0.25,88.607,88.536,46.6823]
[1643370508507,6.0,88.598,88.536,46.6823]
[1643370508908,0.25,88.597,88.536,46.6823]
[1643370509108,6.0,88.6,88.537,37.78162304]
[1643370509307,0.25,88.597,88.537,37.78162304]
[1643370509527,6.0,88.595,88.537,37.78162304]
[1643370509929,0.25,88.594,88.537,37.78162304]
[1643370511029,0.25,88.604,88.537,37.78162304]
[1643370511230,0.25,88.604,88.537,37.53162304]
[1643370511430,0.25,88.609,88.537,37.53162304]
[1643370512233,2.95669142,88.608,88.537,37.53162304]
[1643370512630,0.25,88.607,88.537,37.53162304]
[1643370512835,6.0,88.599,88.537,37.53162304]
[1643370513234,6.25,88.598,88.537,37.53162304]
[1643370514039,2.95669142,88.597,88.537,37.53162304]
[1643370514335,0.25,88.596,88.537,37.53162304]
[1643370514535,6.0,88.587,88.537,37.53162304]
[1643370514740,4.86343291,88.586,88.537,37.53162304]
[1643370514939,5.11343291,88.586,88.537,37.53162304]
[1643370515139,6.0,88.576,88.537,37.53162304]
[1643370515338,0.25,88.575,88.537,37.53162304]
[1643370516538,0.25,88.575,88.51,16.29]
[1643370516739,0.25,88.575,88.511,0.25]
[1643370517639,0.25,88.575,88.48,33.66879744]
[1643370517640,2.95669142,88.574,88.504,41.23718843]
[1643370517842,0.25,88.573,88.504,41.23718843]
[1643370518046,6.0,88.564,88.504,41.23718843]
[1643370518244,25.99824693,88.563,88.504,41.23718843]
[1643370518449,26.24824693,88.563,88.504,41.23718843]
[1643370518643,6.0,88.553,88.504,41.23718843]
[1643370518942,0.25,88.552,88.504,41.23718843]
[1643370520345,0.25,88.561,88.504,41.23718843]
[1643370520946,25.18025321,88.561,88.504,41.23718843]
[1643370521146,16.957,88.56,88.504,41.23718843]
[1643370521347,0.25,88.559,88.504,41.23718843]
[1643370522148,0.25,88.559,88.505,0.25]
[1643370522548,6.0,88.562,88.505,0.25]
[1643370522549,0.25,88.56,88.505,0.25]
[1643370522950,0.25,88.561,88.505,0.25]
[1643370523147,6.0,88.56,88.505,0.25]
[1643370523349,0.25,88.559,88.505,0.25]
[1643370524558,0.25,88.569,88.505,0.25]
[1643370524756,0.25,88.569,88.504,41.23718843]
[1643370524757,24.69892986,88.569,88.504,41.23718843]
[1643370524959,24.69892986,88.569,88.505,0.25]
[1643370525356,24.69892986,88.569,88.504,41.23718843]
[1643370527159,24.44892986,88.569,88.504,41.23718843]
[1643370527359,24.44892986,88.569,88.505,0.25]
[1643370528482,16.956,88.57,88.505,0.25]
[1643370528884,6.0,88.56,88.504,41.23718843]
[1643370529083,6.0,88.56,88.505,0.25]
[1643370529284,0.25,88.559,88.505,0.25]
[1643370530289,0.25,88.559,88.504,41.23718843]
[1643370531187,6.0,88.555,88.504,41.23718843]
[1643370531587,27.80768334,88.609,88.504,41.23718843]
[1643370531788,24.7191,88.609,88.505,24.3606]
[1643370531989,6.0,88.599,88.505,24.3606]
[1643370532187,6.0,88.599,88.506,0.25]
[1643370532387,6.0,88.596,88.51,16.29]
[1643370532593,30.04708597,88.595,88.51,16.29]
[1643370532788,0.25,88.594,88.511,0.25]
[1643370532989,6.0,88.585,88.511,0.25]
[1643370533195,0.25,88.594,88.511,0.25]
[1643370533590,0.25,88.594,88.512,2.12105228]
[1643370533791,0.25,88.594,88.513,0.25]
[1643370534392,0.25,88.605,88.513,0.25]
[1643370534591,28.72949077,88.605,88.513,0.25]
[1643370536195,28.72949077,88.605,88.511,0.25]
[1643370536593,6.0,88.595,88.511,0.25]
[1643370536794,0.25,88.594,88.511,0.25]
[1643370536998,6.25,88.594,88.511,0.25]
[1643370537699,6.25,88.594,88.512,2.12105228]
[1643370537896,0.25,88.594,88.513,0.25]
[1643370538299,0.25,88.605,88.514,2.12105228]
[1643370538699,56.491,88.63,88.515,0.25]
[1643370538898,3.08858334,88.631,88.53,16.29]
[1643370539100,46.7402,88.636,88.531,47.3177]
[1643370539301,46.7402,88.636,88.531,47.5677]
[1643370539500,6.0,88.626,88.531,49.68875228]
[1643370539701,6.0,88.626,88.531,47.5677]
[1643370540000,32.27053062,88.625,88.532,39.21434277]
[1643370540205,38.52053062,88.625,88.532,39.21434277]
[1643370540410,32.52053062,88.625,88.533,0.25]
[1643370541202,16.945,88.62,88.533,0.25]
[1643370541402,16.945,88.62,88.532,39.21434277]
[1643370541403,2.51489328,88.609,88.532,39.21434277]
[1643370541606,6.0,88.599,88.533,22.8622]
[1643370541801,0.25,88.598,88.532,39.21434277]
[1643370543806,6.0,88.6,88.533,0.25]
[1643370544006,3.08858334,88.625,88.533,0.25]
[1643370544205,33.15464629,88.627,88.533,24.9465]
[1643370544406,0.25,88.623,88.533,24.9465]
[1643370544605,0.25,88.623,88.533,24.6965]
[1643370545410,112.8,88.626,88.533,24.6965]
[1643370545607,6.0,88.614,88.533,24.6965]
[1643370545807,1.63077761,88.613,88.534,0.25]
[1643370546006,1.63077761,88.613,88.533,24.6965]
[1643370546806,0.25,88.612,88.533,24.6965]
[1643370547409,6.0,88.61,88.533,24.6965]
[1643370547806,0.25,88.609,88.533,24.6965]
[1643370548409,0.25,88.609,88.532,39.21434277]
[1643370548410,6.25,88.609,88.532,39.21434277]
[1643370548808,6.0,88.6,88.532,39.21434277]
[1643370549008,6.0,88.599,88.532,39.21434277]
[1643370549210,6.25,88.599,88.532,39.21434277]
[1643370549409,6.25,88.599,88.533,0.25]
[1643370549608,0.25,88.599,88.533,0.25]
[1643370550008,6.0,88.6,88.533,0.25]
[1643370550211,6.0,88.6,88.534,18.694065]
[1643370550418,6.0,88.6,88.535,0.25]
[1643370550613,6.0,88.614,88.535,0.25]
[1643370550811,6.0,88.614,88.535,24.5192]
[1643370551011,6.0,88.604,88.535,24.5192]
[1643370551416,6.0,88.614,88.536,2.12105228]
[1643370551615,0.25,88.603,88.55,16.29]
[1643370551812,0.25,88.609,88.55,16.29]
[1643370552212,0.25,88.609,88.551,45.18023333]
[1643370552613,6.0,88.608,88.551,45.18023333]
[1643370552812,0.25,88.607,88.551,45.18023333]
[1643370554114,0.25,88.609,88.551,45.18023333]
[1643370554313,0.25,88.613,88.551,45.18023333]
[1643370556818,32.07809126,88.613,88.551,45.18023333]
[1643370557016,6.0,88.603,88.551,45.18023333]
[1643370557417,0.25,88.602,88.551,45.18023333]
[1643370560029,0.25,88.602,88.53,16.29]
[1643370560233,10.29,88.602,88.52,16.29]
[1643370560431,6.0,88.6,88.516,24.1257]
[1643370560632,6.0,88.592,88.516,24.1257]
[1643370560832,113.05,88.591,88.516,24.1257]
[1643370561030,6.0,88.581,88.517,49.15549802]
[1643370561429,0.25,88.58,88.517,49.15549802]
[1643370562045,29.37775425,88.575,88.517,49.15549802]
[1643370562245,39.64775425,88.575,88.501,23.0056]
[1643370562545,16.957,88.56,88.481,24.3334]
[1643370562746,112.8,88.559,88.481,24.3334]
[1643370562949,6.0,88.55,88.481,24.3334]
[1643370563146,6.0,88.549,88.482,42.12629463]
[1643370563348,6.25,88.549,88.482,42.12629463]
[1643370563546,6.0,88.548,88.482,42.12629463]
[1643370563746,6.0,88.539,88.482,42.12629463]
[1643370564045,0.25,88.547,88.482,42.12629463]
[1643370564246,0.25,88.538,88.482,42.12629463]
[1643370565145,6.0,88.534,88.482,42.12629463]
[1643370565347,0.25,88.533,88.482,42.12629463]
[1643370566553,6.25,88.533,88.482,42.12629463]
[1643370567148,6.0,88.53,88.482,42.12629463]
[1643370567350,6.0,88.523,88.482,42.12629463]
[1643370567549,0.25,88.529,88.482,42.12629463]
[1643370567750,0.25,88.522,88.482,42.12629463]
[1643370567950,0.25,88.529,88.482,42.12629463]
[1643370568557,6.0,88.526,88.482,42.12629463]
[1643370568950,0.25,88.525,88.482,42.12629463]
[1643370569952,6.0,88.544,88.482,42.12629463]
[1643370569953,113.05,88.543,88.482,42.12629463]
[1643370570153,6.0,88.533,88.482,42.12629463]
[1643370570353,0.25,88.532,88.482,42.12629463]
[1643370570553,6.0,88.524,88.482,42.12629463]
[1643370570752,16.961,88.54,88.482,42.12629463]
[1643370570753,24.4019,88.574,88.483,0.25]
[1643370570953,1.55522593,88.573,88.483,2.37105228]
[1643370571160,0.25,88.556,88.483,50.12445228]
[1643370571354,0.25,88.556,88.484,2.12105228]
[1643370571553,0.25,88.556,88.484,0.25]
[1643370571753,0.25,88.556,88.483,47.7534]
[1643370572252,0.25,88.559,88.483,47.7534]
[1643370572652,6.25,88.559,88.483,47.7534]
[1643370574053,6.0,88.55,88.484,0.25]
[1643370574253,0.25,88.549,88.483,47.7534]
[1643370574454,0.25,88.549,88.485,2.12105228]
[1643370574854,0.25,88.549,88.486,0.25]
[1643370575255,0.25,88.579,88.487,2.12105228]
[1643370575457,113.05,88.579,88.483,47.7534]
[1643370575659,0.25,88.579,88.484,0.25]
[1643370576057,6.0,88.573,88.484,0.25]
[1643370576260,0.25,88.572,88.484,0.25]
[1643370576656,3.08858334,88.617,88.486,75.0]
[1643370576858,1.55522593,88.604,88.5,16.29]
[1643370577058,1.55522593,88.619,88.51,6.0]
[1643370577260,1.55522593,88.628,88.52,16.29]
[1643370577456,1.55522593,88.634,88.521,50.21488147]
[1643370577659,1.55522593,88.633,88.521,50.46488147]
[1643370577858,1.55522593,88.633,88.522,11.19000102]
[1643370578159,6.0,88.623,88.532,6.0]
[1643370578360,6.0,88.623,88.54,16.29]
[1643370578559,1.55522593,88.637,88.55,6.0]
[1643370578757,1.55522593,88.655,88.56,16.29]
[1643370578961,1.55522593,88.664,88.561,24.7652]
[1643370579157,1.55522593,88.665,88.571,6.0]
[1643370579358,76.5669,88.703,88.58,16.29]
[1643370579359,1.55522593,88.671,88.58,16.29]
[1643370579557,3.08858334,88.696,88.58,16.29]
[1643370579558,1.55522593,88.674,88.581,23.8282]
[1643370579758,1.55522593,88.674,88.581,24.0782]
[1643370580058,0.25,88.673,88.582,8.67327476]
[1643370580261,0.25,88.675,88.583,24.76]
[1643370580659,1.80522593,88.676,88.583,24.76]
[1643370580859,0.25,88.676,88.583,24.76]
[1643370581061,6.0,88.667,88.583,24.76]
[1643370581359,0.25,88.666,88.583,24.76]
[1643370582559,0.25,88.683,88.583,24.76]
[1643370583161,0.25,88.684,88.593,6.0]
[1643370583363,0.25,88.684,88.594,0.25]
[1643370583763,37.82922249,88.685,88.594,0.25]
[1643370583962,37.82922249,88.685,88.594,23.1971]
[1643370584768,37.82922249,88.685,88.595,0.25]
[1643370584965,6.0,88.675,88.595,0.25]
[1643370585164,16.934,88.68,88.595,0.25]
[1643370585367,0.25,88.679,88.595,0.25]
[1643370586170,0.25,88.679,88.594,23.1971]
[1643370586468,0.25,88.679,88.59,16.29]
[1643370586469,36.58560141,88.669,88.59,16.29]
[1643370586867,6.0,88.659,88.59,16.29]
[1643370587068,6.0,88.659,88.582,6.54433279]
[1643370587267,6.0,88.659,88.583,0.25]
[1643370587468,6.0,88.65,88.583,0.25]
[1643370587766,35.93790388,88.651,88.583,23.9547]
[1643370588566,16.941,88.65,88.583,23.9547]
[1643370589570,35.93790388,88.651,88.583,23.9547]
[1643370589770,0.25,88.65,88.583,23.9547]
[1643370590773,0.25,88.65,88.584,0.25]
[1643370591373,0.25,88.65,88.583,23.9547]
[1643370591776,6.0,88.641,88.583,23.9547]
[1643370591977,6.0,88.641,88.582,6.54433279]
[1643370592279,0.25,88.64,88.582,6.54433279]
[1643370593075,6.25,88.64,88.582,6.54433279]
[1643370593275,6.0,88.64,88.583,0.25]
[1643370593676,6.0,88.641,88.583,0.25]
[1643370594576,1.55522593,88.696,88.584,2.12894197]
[1643370594776,0.25,88.675,88.585,0.25]
[1643370595376,49.90076516,88.675,88.585,0.25]
[1643370595577,49.90076516,88.675,88.585,23.1764]
[1643370595797,49.90076516,88.675,88.585,25.30534197]
[1643370595998,49.90076516,88.675,88.586,112.8]
[1643370596199,0.25,88.675,88.6,16.29]
[1643370596399,0.25,88.694,88.601,24.6623]
[1643370596802,0.25,88.694,88.6,16.29]
[1643370597000,6.0,88.685,88.6,16.29]
[1643370597201,47.63994884,88.684,88.601,59.62691436]
[1643370597400,47.88994884,88.684,88.601,59.62691436]
[1643370597600,47.88994884,88.684,88.602,2.12894197]
[1643370597802,6.0,88.674,88.602,2.12894197]
[1643370598002,6.0,88.674,88.601,57.49797239]
[1643370598202,0.25,88.673,88.601,57.49797239]
[1643370598602,0.25,88.673,88.601,33.20457239]
[1643370599003,16.936,88.67,88.601,33.20457239]
[1643370599305,27.02487506,88.669,88.601,33.20457239]
[1643370599502,6.0,88.659,88.601,33.20457239]
[1643370599904,0.25,88.658,88.601,33.20457239]
[1643370600505,0.25,88.658,88.6,16.29]
[1643370600907,26.77487506,88.669,88.6,16.29]
[1643370600908,0.25,88.668,88.6,16.29]
[1643370601507,0.25,88.668,88.601,40.55700741]
[1643370602107,0.25,88.668,88.602,0.25]
[1643370602708,0.25,88.668,88.602,24.9629]
[1643370606712,1.55522593,88.662,88.602,24.9629]
[1643370606913,0.25,88.661,88.602,24.9629]
[1643370607111,1.80522593,88.661,88.602,24.9629]
[1643370607712,1.55522593,88.658,88.602,24.9629]
[1643370607912,0.25,88.657,88.602,24.9629]
[1643370608113,1.55522593,88.653,88.602,24.9629]
[1643370608314,47.88994884,88.652,88.602,24.9629]
[1643370608513,0.25,88.652,88.602,24.9629]
[1643370608713,1.55522593,88.652,88.602,24.9629]
[1643370608914,1.55522593,88.659,88.602,24.9629]
[1643370609211,136.3563,88.698,88.603,0.25]
[1643370609212,1.55522593,88.661,88.603,0.25]
[1643370609414,1.55522593,88.661,88.602,24.9629]
[1643370609612,112.8,88.689,88.602,24.9629]
[1643370609613,1.55522593,88.66,88.602,24.9629]
[1643370609814,1.55522593,88.666,88.603,0.25]
[1643370610014,1.55522593,88.668,88.603,0.25]
[1643370610417,1.55522593,88.667,88.603,0.25]
[1643370610615,44.30683823,88.667,88.603,0.25]
[1643370610818,0.25,88.666,88.603,0.25]
[1643370612622,1.55522593,88.669,88.603,0.25]
[1643370613025,1.55522593,88.672,88.603,0.25]
[1643370613625,37.77502731,88.671,88.603,0.25]
[1643370613825,1.55522593,88.669,88.603,0.25]
[1643370614025,1.55522593,88.668,88.603,0.25]
[1643370614227,1.55522593,88.669,88.603,0.25]
[1643370614757,39.33025324,88.671,88.603,0.25]
[1643370614958,1.55522593,88.667,88.603,0.25]
[1643370615156,1.55522593,88.666,88.603,0.25]
[1643370615956,0.25,88.665,88.603,0.25]
[1643370616557,0.25,88.665,88.602,48.7457]
[1643370616759,0.25,88.665,88.578,1.56322767]
[1643370616957,1.55522593,88.652,88.57,16.29]
[1643370617158,1.55522593,88.652,88.567,22.7657]
[1643370617360,6.0,88.642,88.567,22.7657]
[1643370617757,1.55522593,88.638,88.568,35.97771973]
[1643370617959,6.0,88.635,88.568,35.97771973]
[1643370618161,6.0,88.628,88.568,35.97771973]
[1643370618361,6.25,88.627,88.568,35.97771973]
[1643370620161,0.25,88.627,88.569,0.25]
[1643370620361,0.25,88.63,88.569,0.25]
[1643370620963,0.25,88.644,88.569,0.25]
[1643370621162,0.25,88.645,88.569,0.25]
[1643370622363,0.25,88.646,88.569,0.25]
[1643370622763,38.96002242,88.646,88.569,0.25]
[1643370622963,38.71002242,88.646,88.569,0.25]
[1643370623167,0.25,88.645,88.569,0.25]
[1643370623563,1.55522593,88.643,88.569,0.25]
[1643370623763,0.25,88.642,88.569,0.25]
[1643370624365,0.25,88.642,88.57,16.29]
[1643370624764,0.25,88.642,88.571,0.25]
[1643370625363,40.81805244,88.643,88.571,0.25]
[1643370631477,0.25,88.643,88.571,0.25]
[1643370631775,0.25,88.645,88.571,0.25]
[1643370632274,0.25,88.646,88.571,0.25]
[1643370632675,0.25,88.646,88.57,16.29]
[1643370633697,1.55522593,88.647,88.57,16.29]
[1643370633897,1.55522593,88.648,88.571,2.12894197]
[1643370634099,4.58020311,88.698,88.571,2.12894197]
[1643370634100,1.55522593,88.668,88.572,1.56322767]
[1643370634300,1.55522593,88.677,88.582,112.8]
[1643370634499,3.12248535,88.696,88.6,203.61]
[1643370634700,73.9833,88.757,88.621,75.0]
[1643370634701,1.56159483,88.698,88.621,75.0]
[1643370634901,3.08858334,88.733,88.64,16.92]
[1643370635099,73.9833,88.757,88.64,16.92]
[1643370635100,3.08858334,88.741,88.65,22.29]
[1643370635300,3.08858334,88.743,88.651,23.174]
[1643370635502,3.08858334,88.741,88.651,23.174]
[1643370635700,49.64133428,88.741,88.652,31.29363955]
[1643370635901,6.0,88.731,88.653,0.25]
[1643370636600,6.0,88.73,88.653,0.25]
[1643370636802,25.88169142,88.73,88.652,31.29363955]
[1643370637100,8.95669142,88.729,88.652,31.29363955]
[1643370637304,9.20669142,88.729,88.652,31.29363955]
[1643370637501,32.54615314,88.719,88.652,31.29363955]
[1643370637701,112.8,88.718,88.652,31.29363955]
[1643370637903,122.00669142,88.718,88.63,16.29]
[1643370638104,6.0,88.708,88.63,16.29]
[1643370638301,0.25,88.707,88.63,16.29]
[1643370638503,3.20669142,88.707,88.63,16.29]
[1643370638704,9.20669142,88.707,88.63,16.29]
[1643370638903,44.88848298,88.697,88.63,16.29]
[1643370639305,0.25,88.696,88.63,16.29]
[1643370639905,0.25,88.696,88.613,22.6475]
[1643370640104,16.934,88.68,88.613,22.6475]
[1643370640306,113.05,88.679,88.58,16.29]
[1643370640606,6.0,88.669,88.58,16.29]
[1643370640808,34.4604211,88.668,88.581,37.26353173]
[1643370641010,6.0,88.658,88.581,37.26353173]
[1643370641408,16.94,88.65,88.581,37.26353173]
[1643370641613,44.88848298,88.649,88.581,37.26353173]
[1643370642011,47.8451744,88.649,88.581,37.26353173]
[1643370643313,6.0,88.639,88.581,37.26353173]
[1643370643716,0.25,88.638,88.581,37.26353173]
[1643370643913,113.05,88.638,88.581,37.26353173]
[1643370644113,113.05,88.638,88.58,16.29]
[1643370644114,0.25,88.638,88.58,16.29]
[1643370644313,112.8,88.627,88.56,16.29]
[1643370644516,6.0,88.628,88.541,45.7313]
[1643370644714,6.0,88.617,88.541,45.7313]
[1643370644916,0.25,88.616,88.542,31.42420842]
[1643370645115,34.4604211,88.616,88.543,33.4315643]
[1643370645515,34.4604211,88.616,88.544,0.25]
[1643370646315,34.4604211,88.616,88.543,33.4315643]
[1643370646515,6.0,88.606,88.543,33.4315643]
[1643370646917,0.25,88.605,88.543,33.4315643]
[1643370648118,10.92,88.605,88.543,33.4315643]
[1643370648320,10.92,88.605,88.544,0.25]
[1643370648525,42.1083892,88.594,88.544,0.25]
[1643370648923,0.25,88.593,88.544,0.25]
[1643370650726,0.25,88.593,88.54,16.29]
[1643370650929,0.25,88.593,88.522,17.40832846]
[1643370650930,6.0,88.584,88.522,17.40832846]
[1643370651126,6.0,88.584,88.5,16.29]
[1643370651127,6.0,88.583,88.5,16.29]
[1643370651327,6.25,88.583,88.5,16.29]
[1643370651528,6.0,88.582,88.494,18.84447151]
[1643370651728,6.0,88.573,88.495,59.81591356]
[1643370651950,36.99051488,88.572,88.495,59.81591356]
[1643370652126,37.24051488,88.572,88.495,59.81591356]
[1643370652327,6.0,88.562,88.496,31.43973428]
[1643370652529,17.37,88.562,88.496,31.43973428]
[1643370652729,17.37,88.562,88.495,28.37617928]
[1643370652730,0.25,88.561,88.495,28.37617928]
[1643370653736,3.08858334,88.645,88.496,24.78274197]
[1643370653932,23.8958,88.615,88.51,16.29]
[1643370654132,6.0,88.605,88.511,46.1984]
[1643370654333,0.25,88.604,88.511,46.1984]
[1643370654532,16.949,88.6,88.511,46.1984]
[1643370654733,36.59426701,88.599,88.512,11.70491664]
[1643370654932,6.0,88.59,88.512,11.70491664]
[1643370655132,36.84426701,88.599,88.512,11.70491664]
[1643370655133,6.0,88.589,88.512,11.70491664]
[1643370655333,0.25,88.588,88.513,0.25]
[1643370655733,24.3432,88.615,88.513,0.25]
[1643370655934,24.3432,88.615,88.513,11.40529597]
[1643370656139,2.95669142,88.633,88.514,130.06783154]
[1643370656337,2.95669142,88.633,88.515,0.25]
[1643370656536,6.0,88.623,88.531,28.37617928]
[1643370656736,6.0,88.623,88.532,22.546]
[1643370656937,6.0,88.622,88.532,22.796]
[1643370657137,6.0,88.623,88.532,22.796]
[1643370657337,0.25,88.622,88.532,22.796]
[1643370657537,6.0,88.62,88.532,22.796]
[1643370659137,0.25,88.619,88.532,22.546]
[1643370660358,0.25,88.619,88.533,0.25]
[1643370660959,6.0,88.612,88.533,0.25]
[1643370661159,41.62045211,88.607,88.533,0.25]
[1643370661363,0.25,88.606,88.533,0.25]
[1643370662761,26.25139142,88.635,88.533,0.25]
[1643370662962,23.2947,88.635,88.534,2.12894197]
[1643370663162,23.2947,88.635,88.542,6.0]
[1643370663362,2.95669142,88.647,88.544,6.0]
[1643370663562,2.95669142,88.665,88.55,16.29]
[1643370663967,6.0,88.655,88.56,6.0]
[1643370664162,6.0,88.655,88.57,16.29]
[1643370664561,43.06520904,88.654,88.571,28.37617928]
[1643370664764,16.94,88.65,88.571,28.37617928]
[1643370664965,6.0,88.644,88.572,24.3594]
[1643370665165,16.94,88.65,88.572,24.3594]
[1643370665166,38.99038646,88.639,88.572,24.3594]
[1643370665365,0.25,88.638,88.572,24.3594]
[1643370666366,0.25,88.638,88.573,0.25]
[1643370666569,38.99038646,88.639,88.573,0.25]
[1643370666767,38.99038646,88.639,88.572,24.3594]
[1643370668270,38.99038646,88.639,88.573,0.25]
[1643370670077,38.99038646,88.639,88.582,6.0]
[1643370670275,0.25,88.638,88.582,6.0]
[1643370670677,0.25,88.638,88.573,0.25]
[1643370671479,38.99038646,88.639,88.573,0.25]
[1643370672778,0.25,88.638,88.573,0.25]
[1643370672979,38.99038646,88.639,88.573,0.25]
[1643370675085,6.0,88.629,88.573,0.25]
[1643370675286,0.25,88.628,88.572,24.3594]
[1643370676084,0.25,88.628,88.57,16.29]
[1643370676286,2.95669142,88.627,88.54,16.29]
[1643370676488,2.95669142,88.627,88.521,22.9812]
[1643370676686,6.0,88.617,88.521,22.9812]
[1643370676889,0.25,88.616,88.521,22.9812]
[1643370677088,49.31520904,88.616,88.522,37.63663338]
[1643370677288,2.95669142,88.615,88.522,37.63663338]
[1643370677490,115.75669142,88.615,88.522,37.63663338]
[1643370677687,6.0,88.605,88.523,0.25]
[1643370677887,0.25,88.604,88.523,0.25]
[1643370678090,119.05,88.604,88.523,0.25]